fUSD/lending_fUSD_20250628
["ID","MTS","AMOUNT","RATE_DAILY","PERIOD"]
[368335087,1751127068765,-973.79,0.00031779,9]
[368335088,1751127068774,-190.8389862,0.00031779,9]
[368335089,1751127068783,-532.27,0.00031779,9]
[368335090,1751127068793,-490.0,0.00031779,9]
[368335091,1751127068803,-490.0,0.00031779,9]
[368335092,1751127068813,-490.0,0.00031779,9]
[368335093,1751127068823,-1403.31,0.00031779,9]
[368335094,1751127068833,-490.0,0.00031779,9]
[368335095,1751127068844,-524.8,0.00031779,9]
[368335096,1751127068854,-490.0,0.00031779,9]
[368335097,1751127068865,-566.4,0.00031779,9]
[368335098,1751127068874,-781.13,0.00031779,9]
[368335099,1751127068884,-1038.76,0.00031779,9]
[368335100,1751127068893,-490.0,0.00031779,9]
[368335101,1751127068903,-490.0,0.00031779,9]
[368335102,1751127068912,-490.0,0.00031779,9]
[368335103,1751127068923,-548.73627866,0.00031779,9]
[368335104,1751127068933,-490.0,0.00031779,9]
[368335105,1751127068943,-565.74,0.00031779,9]
[368335106,1751127068952,-490.0,0.00031779,9]
[368335107,1751127068962,-1376.27,0.00031779,9]
[368335108,1751127068971,-537.95,0.00031779,9]
[368335109,1751127068992,-538.92,0.00031779,9]
[368335110,1751127069003,-970.04,0.00031779,9]
[368335111,1751127069015,-490.0,0.00031779,9]
[368335112,1751127069027,-490.0,0.00031779,9]
[368335113,1751127069038,-490.0,0.00031779,9]
[368335114,1751127069049,-904.08,0.00031779,9]
[368335115,1751127069060,-1123.45,0.00031779,9]
[368335116,1751127069070,-490.0,0.00031779,9]
[368335117,1751127069082,-1014.34,0.00031779,9]
[368335118,1751127069093,-490.0,0.00031779,9]
[368335119,1751127069103,-499.21512011,0.00031779,9]
[368335120,1751127069115,-490.0,0.00031779,9]
[368335121,1751127069125,-490.0,0.00031779,9]
[368335122,1751127069136,-490.0,0.00031779,9]
[368335123,1751127069146,-490.0,0.00031779,9]
[368335124,1751127069157,-1037.25,0.00031779,9]
[368335125,1751127069167,-806.78,0.00031779,9]
[368335126,1751127069178,-490.0,0.00031779,9]
[368335127,1751127069188,-490.0,0.00031779,9]
[368335128,1751127069198,-884.11,0.00031779,9]
[368335129,1751127069208,-490.0,0.00031779,9]
[368335130,1751127069220,-412.25261477,0.00031779,9]
[368335131,1751127069230,-490.0,0.00031779,9]
[368335132,1751127069241,-490.0,0.00031779,9]
[368335133,1751127069251,-501.66914227,0.00031779,9]
[368335134,1751127069262,-490.0,0.00031779,9]
[368335135,1751127069272,-490.0,0.00031779,9]
[368335136,1751127069283,-744.62,0.00031779,9]
[368335137,1751127069294,-490.0,0.00031779,9]
[368335138,1751127069304,-663.58,0.00031779,9]
[368335139,1751127069317,-856.54,0.00031779,9]
[368335140,1751127069331,-1654.81,0.00031779,9]
[368335141,1751127069347,-490.0,0.00031779,9]
[368335142,1751127069360,-763.15,0.00031779,9]
[368335143,1751127069371,-490.0,0.00031779,9]
[368335144,1751127069381,-1914.18,0.00031779,9]
[368335145,1751127069391,-490.0,0.00031779,9]
[368335146,1751127069403,-490.0,0.0003178,9]
[368335147,1751127069414,-300.0,0.0003178,9]
[368335148,1751127069425,-745.71,0.0003178,9]
[368335149,1751127069443,-490.0,0.0003178,9]
[368335150,1751127069453,-490.0,0.0003178,9]
[368335151,1751127069465,-506.16868478,0.0003178,9]
[368335152,1751127069475,-490.0,0.0003178,9]
[368335153,1751127069487,-490.0,0.0003178,9]
[368335154,1751127069497,-490.0,0.0003178,9]
[368335155,1751127069508,-490.0,0.0003178,9]
[368335156,1751127069527,-505.75214723,0.0003178,9]
[368335157,1751127069539,-490.0,0.0003178,9]
[368335158,1751127069819,-490.0,0.0003178,9]
[368335159,1751127069847,-530.0,0.0003178,9]
[368335160,1751127069857,-490.0,0.0003178,9]
[368335161,1751127069867,-490.0,0.0003178,9]
[368335162,1751127069878,-509.14087725,0.0003178,9]
[368335163,1751127069888,-490.0,0.0003178,9]
[368335164,1751127069898,-490.0,0.0003178,9]
[368335165,1751127069908,-490.0,0.0003178,9]
[368335166,1751127069920,-1229.39,0.0003178,9]
[368335167,1751127069930,-490.0,0.0003178,9]
[368335168,1751127069940,-490.0,0.0003178,9]
[368335169,1751127069950,-490.0,0.0003178,9]
[368335170,1751127069960,-490.0,0.0003178,9]
[368335171,1751127069969,-490.0,0.0003178,9]
[368335172,1751127069979,-772.85,0.0003178,9]
[368335173,1751127069988,-490.0,0.0003178,9]
[368335174,1751127069999,-504.22,0.0003178,9]
[368335175,1751127070008,-490.0,0.0003178,9]
[368335176,1751127070018,-490.0,0.0003178,9]
[368335177,1751127070030,-538.4355663,0.0003178,9]
[368335178,1751127070049,-490.0,0.0003178,9]
[368335179,1751127070059,-490.0,0.0003178,9]
[368335180,1751127070069,-490.0,0.0003178,9]
[368335181,1751127070083,-972.76,0.0003178,9]
[368335182,1751127070093,-887.64,0.0003178,9]
[368335183,1751127070104,-503.07249981,0.00031809,3]
[368335184,1751127070114,-1000.0,0.00031851,5]
[368335185,1751127070124,-1195.67569277,0.00031862,2]
[368335186,1751127070135,-3600.0,0.000319,11]
[368335187,1751127070145,-1002.22544223,0.00031932,5]
[368335188,1751127070155,-197.03789385,0.00031939,5]
[368335189,1751127070165,-3349.60720607,0.00032,120]
[368335190,1751127070175,-11174.00773786,0.00032022,2]
[368335191,1751127070185,-155.57887476,0.00032041,3]
[368335192,1751127070195,-268.82749076,0.00032042,9]
[368335193,1751127070205,-1000.0,0.00032042,9]
[368335194,1751127070215,-490.0,0.00032042,9]
[368335195,1751127070225,-490.0,0.00032042,9]
[368335196,1751127070235,-490.0,0.00032042,9]
[368335197,1751127070245,-524.47433628,0.00032042,9]
[368335198,1751127070255,-490.0,0.00032042,9]
[368335199,1751127070265,-547.99,0.00032042,9]
[368335200,1751127070275,-490.0,0.00032042,9]
[368335201,1751127070285,-490.0,0.00032042,9]
[368335202,1751127070295,-490.0,0.00032042,9]
[368335203,1751127070305,-210.58495297,0.00032042,9]
[368335204,1751127070315,-740.17,0.00032042,9]
[368335205,1751127070327,-490.0,0.00032042,9]
[368335206,1751127070336,-558.87,0.00032042,9]
[368335207,1751127070347,-803.17,0.00032042,9]
[368335208,1751127070357,-1019.29,0.00032042,9]
[368335209,1751127070367,-1175.88,0.00032042,9]
[368335210,1751127070376,-1149.58,0.00032042,9]
[368335211,1751127070385,-455.84124847,0.00032042,9]
[368335212,1751127070395,-490.0,0.00032042,9]
[368335213,1751127070406,-2359.85,0.00032042,9]
[368335214,1751127070415,-536.0,0.00032042,9]
[368335215,1751127070425,-905.54,0.00032042,9]
[368335216,1751127070435,-1256.72,0.00032042,9]
[368335217,1751127070444,-520.09,0.00032042,9]
[368335218,1751127070454,-917.86,0.00032042,9]
[368335219,1751127070464,-523.33,0.00032042,9]
[368335220,1751127070477,-945.59,0.00032042,9]
[368335221,1751127070487,-545.87421789,0.00032042,9]
[368335222,1751127070497,-1025.49,0.00032042,9]
[368335223,1751127070506,-490.0,0.00032042,9]
[368335224,1751127070519,-896.35,0.00032042,9]
[368335225,1751127070529,-201.9624856,0.00032043,26]
[368335226,1751127070540,-579.65,0.00032043,9]
[368335227,1751127070551,-490.0,0.00032043,9]
[368335228,1751127070562,-490.0,0.00032043,9]
[368335229,1751127070571,-490.0,0.00032043,9]
[368335230,1751127070581,-490.0,0.00032043,9]
[368335231,1751127070591,-490.0,0.00032043,9]
[368335232,1751127070600,-490.0,0.00032043,9]
[368335233,1751127070611,-490.0,0.00032043,9]
[368335234,1751127070620,-490.0,0.00032043,9]
[368335235,1751127070630,-490.0,0.00032043,9]
[368335236,1751127070649,-2521.53,0.00032043,9]
[368335237,1751127070661,-1502.17,0.00032043,9]
[368335238,1751127070673,-490.0,0.00032043,9]
[368335239,1751127070684,-1007.242306,0.00032043,9]
[368335240,1751127070694,-4646.96,0.00032043,9]
[368335241,1751127070705,-1743.591254,0.00032043,9]
[368335242,1751127070715,-2711.24,0.00032043,9]
[368335243,1751127070725,-817.339594,0.00032043,9]
[368335244,1751127070736,-1104.91,0.00032043,9]
[368335245,1751127070746,-181.414053,0.00032043,9]
[368335246,1751127070757,-500.0,0.00032043,9]
[368335247,1751127070767,-1694.66,0.00032043,9]
[368335248,1751127070779,-1258.13,0.00032043,9]
[368335249,1751127070794,-707.58,0.00032043,9]
[368335250,1751127070805,-638.59,0.00032043,9]
[368335251,1751127070816,-1388.25,0.00032043,9]
[368335252,1751127070827,-940.08,0.00032043,9]
[368335253,1751127070837,-4320.7,0.00032043,9]
[368335254,1751127070847,-1237.79,0.00032043,9]
[368335255,1751127070857,-1387.21,0.00032043,9]
[368335256,1751127070867,-234.83092324,0.00032043,2]
[368335257,1751127070878,-490.0,0.00032043,9]
[368335258,1751127070888,-954.12,0.00032043,9]
[368335259,1751127070899,-813.75,0.00032043,9]
[368335260,1751127070909,-3596.5,0.00032043,9]
[368335261,1751127070919,-1282.84,0.00032043,9]
[368335262,1751127070932,-1123.66,0.00032043,9]
[368335263,1751127070943,-852.99,0.00032043,9]
[368335264,1751127070952,-490.0,0.00032043,9]
[368335265,1751127070963,-490.0,0.00032053,9]
[368335266,1751127070973,-490.0,0.00032053,9]
[368335267,1751127070983,-490.0,0.00032053,9]
[368335268,1751127070992,-490.0,0.00032053,9]
[368335269,1751127071002,-490.0,0.00032053,9]
[368335270,1751127071013,-490.0,0.00032053,9]
[368335271,1751127071023,-490.0,0.00032053,9]
[368335272,1751127071033,-490.0,0.00032053,9]
[368335273,1751127071043,-490.0,0.00032053,9]
[368335274,1751127071053,-510.0,0.00032053,9]
[368335275,1751127071063,-490.0,0.00032053,9]
[368335276,1751127071073,-490.0,0.00032053,9]
[368335277,1751127071084,-490.0,0.00032053,9]
[368335278,1751127071098,-490.0,0.00032053,9]
[368335279,1751127071108,-739.08,0.00032053,9]
[368335280,1751127071118,-490.0,0.00032053,9]
[368335281,1751127071129,-490.0,0.00032053,9]
[368335282,1751127071139,-953.0,0.00032053,9]
[368335283,1751127071150,-490.0,0.00032053,9]
[368335284,1751127071161,-1866.06,0.00032053,9]
[368335285,1751127071173,-490.0,0.00032053,9]
[368335286,1751127071183,-490.0,0.00032053,9]
[368335287,1751127071194,-490.0,0.00032053,9]
[368335288,1751127071204,-490.0,0.00032053,9]
[368335289,1751127071215,-490.0,0.00032053,9]
[368335290,1751127071226,-490.0,0.00032053,9]
[368335291,1751127071237,-490.0,0.00032053,9]
[368335292,1751127071248,-490.0,0.00032053,9]
[368335293,1751127071258,-944.26,0.00032053,9]
[368335294,1751127071268,-490.0,0.00032053,9]
[368335295,1751127071278,-522.64428365,0.00032053,9]
[368335296,1751127071290,-490.0,0.00032053,9]
[368335297,1751127071300,-490.0,0.00032053,9]
[368335298,1751127071311,-490.0,0.00032053,9]
[368335299,1751127071321,-490.0,0.00032053,9]
[368335300,1751127071331,-490.0,0.00032053,9]
[368335301,1751127071342,-490.0,0.00032053,9]
[368335302,1751127071353,-994.17,0.00032053,9]
[368335303,1751127071370,-490.0,0.00032053,9]
[368335304,1751127071381,-917.26,0.00032053,9]
[368335305,1751127071392,-490.0,0.00032053,9]
[368335306,1751127071404,-490.0,0.00032053,9]
[368335307,1751127071415,-490.0,0.00032053,9]
[368335308,1751127071427,-834.16,0.00032053,9]
[368335309,1751127071437,-490.0,0.00032053,9]
[368335310,1751127071447,-490.0,0.00032053,9]
[368335311,1751127071458,-511.14832114,0.00032053,9]
[368335312,1751127071468,-490.0,0.00032053,9]
[368335313,1751127071479,-490.0,0.00032053,9]
[368335314,1751127071490,-490.0,0.00032053,9]
[368335315,1751127071500,-668.47,0.00032053,9]
[368335316,1751127071511,-490.0,0.00032053,9]
[368335317,1751127071521,-490.0,0.00032053,9]
[368335318,1751127071532,-490.0,0.00032053,9]
[368335319,1751127071542,-490.0,0.00032053,9]
[368335320,1751127071553,-490.0,0.00032053,9]
[368335321,1751127071565,-510.0,0.00032053,9]
[368335322,1751127071575,-490.0,0.00032053,9]
[368335323,1751127071586,-573.62,0.00032053,9]
[368335324,1751127071598,-490.0,0.00032053,9]
[368335325,1751127071610,-490.0,0.00032053,9]
[368335326,1751127071621,-627.55,0.00032053,9]
[368335327,1751127071632,-490.0,0.00032053,9]
[368335328,1751127071644,-490.0,0.00032053,9]
[368335329,1751127071658,-595.52,0.00032053,9]
[368335330,1751127071670,-490.0,0.00032053,9]
[368335331,1751127071680,-490.0,0.00032053,9]
[368335332,1751127071691,-490.0,0.00032053,9]
[368335333,1751127071701,-490.0,0.00032053,9]
[368335334,1751127071711,-490.0,0.00032053,9]
[368335335,1751127071722,-490.0,0.00032053,9]
[368335336,1751127071732,-490.0,0.00032053,9]
[368335337,1751127071743,-543.51,0.00032053,9]
[368335338,1751127071753,-490.0,0.00032053,9]
[368335339,1751127071764,-490.0,0.00032053,9]
[368335340,1751127071774,-490.0,0.00032053,9]
[368335341,1751127071784,-689.4,0.00032053,9]
[368335342,1751127071794,-490.0,0.00032053,9]
[368335343,1751127071804,-490.0,0.00032053,9]
[368335344,1751127071815,-523.99722761,0.00032053,9]
[368335345,1751127071825,-490.0,0.00032053,9]
[368335346,1751127071835,-490.0,0.00032053,9]
[368335347,1751127071845,-490.0,0.00032053,9]
[368335348,1751127071855,-490.0,0.00032053,9]
[368335349,1751127071864,-500.0,0.00032053,9]
[368335350,1751127071875,-490.0,0.00032053,9]
[368335351,1751127071885,-490.0,0.00032053,9]
[368335352,1751127071897,-490.0,0.00032053,9]
[368335353,1751127071908,-490.0,0.00032053,9]
[368335354,1751127071919,-490.0,0.00032053,9]
[368335355,1751127071930,-1176.69,0.00032053,9]
[368335356,1751127071940,-1075.47,0.00032053,9]
[368335357,1751127071951,-490.0,0.00032053,9]
[368335358,1751127071961,-490.0,0.00032053,9]
[368335359,1751127071972,-688.03,0.00032053,9]
[368335360,1751127071982,-490.0,0.00032053,9]
[368335361,1751127071992,-490.0,0.00032053,9]
[368335362,1751127072002,-490.0,0.00032053,9]
[368335363,1751127072012,-490.0,0.00032053,9]
[368335364,1751127072022,-490.0,0.00032053,9]
[368335365,1751127072032,-529.89,0.00032053,9]
[368335366,1751127072041,-490.0,0.00032053,9]
[368335367,1751127072051,-490.0,0.00032053,9]
[368335368,1751127072062,-776.12,0.00032053,9]
[368335369,1751127072072,-490.0,0.00032053,9]
[368335370,1751127072082,-490.0,0.00032053,9]
[368335371,1751127072091,-490.0,0.00032053,9]
[368335372,1751127072101,-490.0,0.00032053,9]
[368335373,1751127072111,-1287.13,0.00032053,9]
[368335374,1751127072121,-490.0,0.00032053,9]
[368335375,1751127072131,-490.0,0.00032053,9]
[368335376,1751127072142,-490.0,0.00032053,9]
[368335377,1751127072152,-490.0,0.00032053,9]
[368335378,1751127072162,-490.0,0.00032053,9]
[368335379,1751127072173,-490.0,0.00032053,9]
[368335380,1751127072183,-707.77,0.00032053,9]
[368335381,1751127072192,-519.0,0.00032053,9]
[368335382,1751127072202,-490.0,0.00032053,9]
[368335383,1751127072212,-494.42679403,0.00032053,9]
[368335384,1751127072223,-521.82466772,0.00032053,9]
[368335385,1751127072233,-490.0,0.00032053,9]
[368335386,1751127072244,-490.0,0.00032053,9]
[368335387,1751127072254,-511.65770037,0.00032053,9]
[368335388,1751127072264,-490.0,0.00032053,9]
[368335389,1751127072274,-490.0,0.00032053,9]
[368335390,1751127072284,-490.0,0.00032053,9]
[368335391,1751127072294,-490.0,0.00032053,9]
[368335392,1751127072304,-490.0,0.00032053,9]
[368335393,1751127072314,-490.0,0.00032053,9]
[368335394,1751127072324,-2039.39,0.00032053,9]
[368335395,1751127072334,-490.0,0.00032053,9]
[368335396,1751127072344,-543.97,0.00032053,9]
[368335397,1751127072354,-490.0,0.00032053,9]
[368335398,1751127072366,-490.0,0.00032053,9]
[368335399,1751127072375,-490.0,0.00032053,9]
[368335400,1751127072386,-490.0,0.00032053,9]
[368335401,1751127072395,-1032.02,0.00032053,9]
[368335402,1751127072405,-490.0,0.00032053,9]
[368335403,1751127072415,-490.0,0.00032053,9]
[368335404,1751127072426,-835.31,0.00032053,9]
[368335405,1751127072556,-490.0,0.00032053,9]
[368335406,1751127072567,-490.0,0.00032053,9]
[368335407,1751127072576,-955.27,0.00032053,9]
[368335408,1751127072586,-490.0,0.00032053,9]
[368335409,1751127072595,-513.40032819,0.00032053,9]
[368335410,1751127072605,-490.0,0.00032053,9]
[368335411,1751127072615,-500.0,0.00032053,9]
[368335412,1751127072624,-634.12,0.00032053,9]
[368335413,1751127072633,-1983.49,0.00032053,9]
[368335414,1751127072643,-490.0,0.00032053,9]
[368335415,1751127072652,-490.0,0.00032053,9]
[368335416,1751127072661,-567.9,0.00032053,9]
[368335417,1751127072670,-490.0,0.00032053,9]
[368335418,1751127072679,-490.0,0.00032053,9]
[368335419,1751127072688,-490.0,0.00032053,9]
[368335420,1751127072699,-1131.2,0.00032053,9]
[368335421,1751127072709,-490.0,0.00032053,9]
[368335422,1751127072719,-490.0,0.00032053,9]
[368335423,1751127072729,-490.0,0.00032053,9]
[368335424,1751127072739,-490.0,0.00032053,9]
[368335425,1751127072748,-490.0,0.00032053,9]
[368335426,1751127072758,-490.0,0.00032053,9]
[368335427,1751127072768,-1007.05,0.00032053,9]
[368335428,1751127072777,-663.27,0.00032053,9]
[368335429,1751127072786,-1439.67,0.00032053,9]
[368335430,1751127072796,-490.0,0.00032053,9]
[368335431,1751127072805,-490.0,0.00032053,9]
[368335432,1751127072815,-490.0,0.00032053,9]
[368335433,1751127072824,-490.0,0.00032053,9]
[368335434,1751127072833,-490.0,0.00032053,9]
[368335435,1751127072842,-1982.75,0.00032053,9]
[368335436,1751127072852,-490.0,0.00032053,9]
[368335437,1751127072861,-1134.06,0.00032053,9]
[368335438,1751127072871,-490.0,0.00032053,9]
[368335439,1751127072880,-522.96601912,0.00032053,9]
[368335440,1751127072890,-611.28,0.00032053,9]
[368335441,1751127072900,-490.0,0.00032053,9]
[368335442,1751127072910,-1774.05,0.00032053,9]
[368335443,1751127072919,-490.0,0.00032053,9]
[368335444,1751127072930,-1393.8,0.00032053,9]
[368335445,1751127072939,-720.46,0.00032053,9]
[368335446,1751127072949,-490.0,0.00032053,9]
[368335447,1751127072958,-1115.21,0.00032053,9]
[368335448,1751127072968,-490.0,0.00032053,9]
[368335449,1751127072977,-1542.14,0.00032053,9]
[368335450,1751127072986,-490.0,0.00032053,9]
[368335451,1751127072996,-490.0,0.00032053,9]
[368335452,1751127073006,-494.02727876,0.00032053,9]
[368335453,1751127073015,-490.0,0.00032053,9]
[368335454,1751127073025,-490.0,0.00032053,9]
[368335455,1751127073035,-490.0,0.00032053,9]
[368335456,1751127073044,-490.0,0.00032053,9]
[368335457,1751127073054,-632.57,0.00032053,9]
[368335458,1751127073064,-490.0,0.00032053,9]
[368335459,1751127073073,-490.0,0.00032053,9]
[368335460,1751127073083,-490.0,0.00032053,9]
[368335461,1751127073092,-490.0,0.00032053,9]
[368335462,1751127073102,-490.0,0.00032053,9]
[368335463,1751127073111,-490.0,0.00032053,9]
[368335464,1751127073120,-490.0,0.00032053,9]
[368335465,1751127073130,-490.0,0.00032053,9]
[368335466,1751127073139,-620.36,0.00032053,9]
[368335467,1751127073148,-490.0,0.00032053,9]
[368335468,1751127073158,-2456.76,0.00032053,9]
[368335469,1751127073168,-500.0,0.00032053,9]
[368335470,1751127073178,-776.94,0.00032053,9]
[368335471,1751127073188,-490.0,0.00032053,9]
[368335472,1751127073197,-490.0,0.00032053,9]
[368335473,1751127073207,-558.12,0.00032053,9]
[368335474,1751127073217,-500.0,0.00032053,9]
[368335475,1751127073226,-490.0,0.00032053,9]
[368335476,1751127073236,-490.0,0.00032053,9]
[368335477,1751127073245,-1690.62,0.00032053,9]
[368335478,1751127073255,-1227.1,0.00032053,9]
[368335479,1751127073266,-490.0,0.00032053,9]
[368335480,1751127073276,-492.3196587,0.00032053,9]
[368335481,1751127073285,-490.0,0.00032053,9]
[368335482,1751127073294,-490.0,0.00032053,9]
[368335483,1751127073304,-509.26,0.00032053,9]
[368335484,1751127073313,-2322.24,0.00032053,9]
[368335485,1751127073322,-490.0,0.00032053,9]
[368335486,1751127073333,-503.53,0.00032053,9]
[368335487,1751127073343,-1761.03,0.00032053,9]
[368335488,1751127073352,-504.27823757,0.00032053,9]
[368335489,1751127073363,-1414.4,0.00032053,9]
[368335490,1751127073373,-490.0,0.00032053,9]
[368335491,1751127073382,-540.0,0.00032053,9]
[368335492,1751127073391,-490.0,0.00032053,9]
[368335493,1751127073402,-862.98,0.00032053,9]
[368335494,1751127073411,-490.0,0.00032053,9]
[368335495,1751127073420,-2730.6,0.00032053,9]
[368335496,1751127073430,-225.98956566,0.00032053,9]
[368335497,1751127073439,-1553.67,0.00032053,9]
[368335498,1751127073448,-969.59,0.00032053,9]
[368335499,1751127073459,-490.0,0.00032053,9]
[368335500,1751127073468,-586.07,0.00032053,9]
[368335501,1751127073478,-490.0,0.00032053,9]
[368335502,1751127073487,-1069.27,0.00032053,9]
[368335503,1751127073497,-734.06,0.00032053,9]
[368335504,1751127073507,-1270.58,0.00032053,9]
[368335505,1751127073517,-490.0,0.00032053,9]
[368335506,1751127073526,-973.61,0.00032053,9]
[368335507,1751127073535,-320.96062709,0.00032053,9]
[368335508,1751127073546,-490.0,0.00032053,9]
[368335509,1751127073556,-490.0,0.00032053,9]
[368335510,1751127073566,-490.0,0.00032053,9]
[368335511,1751127073576,-973.79,0.00032053,9]
[368335512,1751127073586,-532.27,0.00032053,9]
[368335513,1751127073596,-490.0,0.00032053,9]
[368335514,1751127073605,-490.0,0.00032053,9]
[368335515,1751127073615,-490.0,0.00032053,9]
[368335516,1751127073625,-1403.31,0.00032053,9]
[368335517,1751127073635,-490.0,0.00032053,9]
[368335518,1751127073644,-524.8,0.00032053,9]
[368335519,1751127073654,-490.0,0.00032053,9]
[368335520,1751127073664,-566.4,0.00032053,9]
[368335521,1751127073676,-781.13,0.00032053,9]
[368335522,1751127073686,-1038.76,0.00032053,9]
[368335523,1751127073695,-490.0,0.00032053,9]
[368335524,1751127073705,-490.0,0.00032053,9]
[368335525,1751127073716,-510.0,0.00032053,9]
[368335526,1751127073725,-565.74,0.00032053,9]
[368335527,1751127073735,-490.0,0.00032053,9]
[368335528,1751127073744,-1376.27,0.00032053,9]
[368335529,1751127073754,-537.95,0.00032053,9]
[368335530,1751127073765,-538.92,0.00032053,9]
[368335531,1751127073775,-970.04,0.00032053,9]
[368335532,1751127073784,-192.38284488,0.00032053,9]
[368335533,1751127073794,-415.50610318,0.00032053,9]
[368335534,1751127073804,-904.08,0.00032053,9]
[368335535,1751127073814,-1123.45,0.00032053,9]
[368335536,1751127073825,-504.82130281,0.00032053,9]
[368335537,1751127073835,-1014.34,0.00032053,9]
[368335538,1751127073845,-490.0,0.00032053,9]
[368335539,1751127073855,-490.0,0.00032053,9]
[368335540,1751127073864,-490.0,0.00032053,9]
[368335541,1751127073874,-490.0,0.00032053,9]
[368335542,1751127073883,-490.0,0.00032053,9]
[368335543,1751127073893,-1037.25,0.00032053,9]
[368335544,1751127073903,-806.78,0.00032053,9]
[368335545,1751127073913,-490.0,0.00032053,9]
[368335546,1751127073925,-271.81193975,0.00032053,9]
[368335547,1751127073935,-884.11,0.00032053,9]
[368335548,1751127073944,-490.0,0.00032053,9]
[368335549,1751127073954,-490.0,0.00032053,9]
[368335550,1751127073964,-490.0,0.00032053,9]
[368335551,1751127073974,-490.0,0.00032053,9]
[368335552,1751127073984,-490.0,0.00032053,9]
[368335553,1751127073994,-744.62,0.00032053,9]
[368335554,1751127074004,-490.0,0.00032053,9]
[368335555,1751127074014,-663.58,0.00032053,9]
[368335556,1751127074023,-856.54,0.00032053,9]
[368335557,1751127074033,-1654.81,0.00032053,9]
[368335558,1751127074043,-490.0,0.00032053,9]
[368335559,1751127074052,-763.15,0.00032053,9]
[368335560,1751127074062,-490.0,0.00032053,9]
[368335561,1751127074071,-1914.18,0.00032053,9]
[368335562,1751127074081,-490.0,0.00032053,9]
[368335563,1751127074091,-490.0,0.00032054,9]
[368335564,1751127074101,-300.0,0.00032054,9]
[368335565,1751127074110,-745.71,0.00032054,9]
[368335566,1751127074120,-490.0,0.00032054,9]
[368335567,1751127074130,-490.0,0.00032054,9]
[368335568,1751127074140,-490.0,0.00032054,9]
[368335569,1751127074149,-490.0,0.00032054,9]
[368335570,1751127074159,-490.0,0.00032054,9]
[368335571,1751127074169,-490.0,0.00032054,9]
[368335572,1751127074180,-550.0,0.00032054,9]
[368335573,1751127074190,-490.0,0.00032054,9]
[368335574,1751127074200,-490.0,0.00032054,9]
[368335575,1751127074210,-490.0,0.00032054,9]
[368335576,1751127074220,-490.0,0.00032054,9]
[368335577,1751127074230,-490.0,0.00032054,9]
[368335578,1751127074240,-1229.39,0.00032054,9]
[368335579,1751127074250,-520.0,0.00032054,9]
[368335580,1751127074260,-490.0,0.00032054,9]
[368335581,1751127074270,-490.0,0.00032054,9]
[368335582,1751127074280,-490.0,0.00032054,9]
[368335583,1751127074289,-490.0,0.00032054,9]
[368335584,1751127074299,-772.85,0.00032054,9]
[368335585,1751127074309,-490.0,0.00032054,9]
[368335586,1751127074318,-504.22,0.00032054,9]